fUSD/lending_fUSD_20250923
["ID","MTS","AMOUNT","RATE_DAILY","PERIOD"]
[387235209,1758664257812,-5837.31,0.00024657,2]
[387235210,1758664257820,-400.0,0.00024657,3]
[387235211,1758664257829,-1001.970278,0.00024657,7]
[387235212,1758664257838,-1049.38,0.00024657,3]
[387235213,1758664257847,-1001.970278,0.00024657,7]
[387235214,1758664257856,-400.0,0.00024657,3]
[387235215,1758664257865,-4079.21,0.00024657,3]
[387235216,1758664257874,-685.44,0.00024657,3]
[387235217,1758664257884,-400.0,0.00024657,3]
[387235218,1758664257893,-2510.3,0.00024657,3]
[387235219,1758664257902,-1001.970278,0.00024657,7]
[387235220,1758664257911,-500.0,0.00024657,3]
[387235221,1758664257920,-500.0,0.00024657,3]
[387235222,1758664257929,-1678.52,0.00024657,3]
[387235223,1758664257938,-4251.49,0.00024657,3]
[387235224,1758664257948,-16706.02,0.00024657,3]
[387235225,1758664257957,-400.0,0.00024657,3]
[387235226,1758664257966,-2074.52,0.00024657,3]
[387235227,1758664257975,-400.0,0.00024657,3]
[387235228,1758664257984,-151.0,0.00024657,7]
[387235229,1758664257993,-400.0,0.00024657,3]
[387235230,1758664258002,-400.0,0.00024657,3]
[387235231,1758664258011,-400.0,0.00024657,3]
[387235232,1758664258021,-400.0,0.00024657,3]
[387235233,1758664258031,-400.0,0.00024657,3]
[387235234,1758664258040,-400.0,0.00024657,3]
[387235235,1758664258049,-689.28,0.00024657,3]
[387235236,1758664258057,-400.0,0.00024657,3]
[387235237,1758664258065,-720.98,0.00024657,3]
[387235238,1758664258073,-400.0,0.00024657,3]
[387235239,1758664258080,-168.141365,0.00024657,7]
[387235240,1758664258088,-151.0,0.00024657,7]
[387235241,1758664258096,-236.564627,0.00024657,7]
[387235242,1758664258105,-400.0,0.00024657,3]
[387235243,1758664258113,-425.15,0.00024657,3]
[387235244,1758664258121,-13418.14,0.00024657,3]
[387235245,1758664258129,-3330.98,0.00024657,3]
[387235246,1758664258137,-487.18,0.00024657,3]
[387235247,1758664258145,-151.0,0.00024657,7]
[387235248,1758664258154,-168.141365,0.00024657,7]
[387235249,1758664258162,-236.564627,0.00024657,7]
[387235250,1758664258171,-605.39,0.00024657,3]
[387235251,1758664258180,-400.0,0.00024657,3]
[387235252,1758664258188,-2046.35,0.00024657,3]
[387235253,1758664258196,-630.04,0.00024657,3]
[387235254,1758664258204,-425.07,0.00024657,3]
[387235255,1758664258212,-472.22,0.00024657,3]
[387235256,1758664258220,-400.0,0.00024657,3]
[387235257,1758664258228,-1822.56,0.00024657,3]
[387235258,1758664258237,-168.141365,0.00024657,7]
[387235259,1758664258246,-507.22,0.00024657,3]
[387235260,1758664258255,-236.564627,0.00024657,7]
[387235261,1758664258264,-908.29,0.00024657,3]
[387235262,1758664258273,-1189.77,0.00024657,3]
[387235263,1758664258282,-300.0,0.00024657,3]
[387235264,1758664258291,-168.141365,0.00024657,7]
[387235265,1758664258300,-400.0,0.00024657,3]
[387235266,1758664258309,-752.17,0.00024657,3]
[387235267,1758664258318,-236.564627,0.00024657,7]
[387235268,1758664258327,-400.0,0.00024657,3]
[387235269,1758664258336,-151.0,0.00024657,7]
[387235270,1758664258345,-2819.02,0.00024657,3]
[387235271,1758664258355,-151.0,0.00024657,7]
[387235272,1758664258366,-151.0,0.00024657,7]
[387235273,1758664258375,-400.0,0.00024657,3]
[387235274,1758664258384,-151.0,0.00024657,7]
[387235275,1758664258393,-151.956465,0.00024657,3]
[387235276,1758664258402,-400.0,0.00024657,3]
[387235277,1758664258411,-151.0,0.00024657,7]
[387235278,1758664258420,-400.0,0.00024657,3]
[387235279,1758664258430,-269.816212,0.00024657,7]
[387235280,1758664258439,-2102.44,0.00024657,3]
[387235281,1758664258448,-151.0,0.00024657,7]
[387235282,1758664258458,-7047.04,0.00024657,3]
[387235283,1758664258467,-624.12,0.00024657,3]
[387235284,1758664258476,-1073.44,0.00024657,3]
[387235285,1758664258485,-269.816212,0.00024657,7]
[387235286,1758664258494,-400.0,0.00024657,3]
[387235287,1758664258503,-1532.57,0.00024657,3]
[387235288,1758664258512,-151.0,0.00024657,7]
[387235289,1758664258521,-458.03,0.00024657,3]
[387235290,1758664258530,-524.59,0.00024657,3]
[387235291,1758664258539,-151.0,0.00024657,7]
[387235292,1758664258549,-151.0,0.00024657,7]
[387235293,1758664258558,-820.59,0.00024657,3]
[387235294,1758664258567,-439.44334856,0.00024657,3]
[387235295,1758664258576,-269.816212,0.00024657,7]
[387235296,1758664258585,-400.0,0.00024657,3]
[387235297,1758664258594,-400.0,0.00024657,3]
[387235298,1758664258604,-1000.0,0.00024658,2]
[387235299,1758664258613,-527.41,0.00024658,2]
[387235300,1758664258622,-500.0,0.00024673,2]
[387235301,1758664258631,-500.0,0.00024673,2]
[387235302,1758664258640,-398.02978092,0.00024673,2]
[387235303,1758664258650,-170.22338976,0.00024673,2]
[387235304,1758664258659,-500.0,0.00024673,2]
[387235305,1758664258668,-500.0,0.00024673,2]
[387235306,1758664258678,-344.06902727,0.00024673,2]
[387235307,1758664258687,-500.0,0.00024673,2]
[387235308,1758664258696,-500.0,0.00024673,2]
[387235309,1758664258705,-500.0,0.00024673,2]
[387235310,1758664258714,-500.0,0.00024673,2]
[387235311,1758664258723,-500.0,0.00024673,2]
[387235312,1758664258732,-500.0,0.00024673,2]
[387235313,1758664258741,-503.66761261,0.00024673,2]
[387235314,1758664258750,-500.0,0.00024673,2]
[387235315,1758664258759,-500.0,0.00024673,2]
[387235316,1758664258769,-500.0,0.00024673,2]
[387235317,1758664258778,-176.73155157,0.00024673,2]
[387235318,1758664258787,-500.0,0.00024673,2]
[387235319,1758664258796,-500.0,0.00024673,2]
[387235320,1758664258805,-500.0,0.00024673,2]
[387235321,1758664258814,-500.0,0.00024673,2]
[387235322,1758664258823,-500.0,0.00024673,2]
[387235323,1758664258832,-500.0,0.00024673,2]
[387235324,1758664258841,-500.0,0.00024673,2]
[387235325,1758664258850,-500.0,0.00024673,2]
[387235326,1758664258859,-255.46079897,0.00024673,2]
[387235327,1758664258868,-500.0,0.00024673,2]
[387235328,1758664258877,-1354.0,0.00024673,2]
[387235329,1758664258886,-151.0,0.00024673,7]
[387235330,1758664258895,-151.0,0.00024673,7]
[387235331,1758664258904,-151.0,0.00024673,7]
[387235332,1758664258914,-217.881956,0.00024673,7]
[387235333,1758664258927,-151.0,0.00024673,7]
[387235334,1758664258938,-151.0,0.00024673,7]
[387235335,1758664258948,-151.0,0.00024673,7]
[387235336,1758664258959,-151.0,0.00024673,7]
[387235337,1758664258971,-157.0558,0.00024673,7]
[387235338,1758664258980,-182.630017,0.00024673,7]
[387235339,1758664258989,-174.419177,0.00024673,7]
[387235340,1758664258998,-151.0,0.00024673,7]
[387235341,1758664259008,-1001.970278,0.00024673,7]
[387235342,1758664259017,-1001.970278,0.00024673,7]
[387235343,1758664259027,-1001.970278,0.00024673,7]
[387235344,1758664259037,-1001.970278,0.00024673,7]
[387235345,1758664259047,-151.0,0.00024673,7]
[387235346,1758664259058,-5014.27452,0.000247,30]
[387235347,1758664259068,-786.0,0.000247,2]
[387235348,1758664259078,-1800.0,0.000247,9]
[387235349,1758664259088,-275.1,0.00024707,2]
[387235350,1758664259097,-152.0,0.00024729,5]
[387235351,1758664259106,-200.0,0.00024732,2]
[387235352,1758664259115,-512.3,0.00024735,3]
[387235353,1758664259124,-150.0,0.0002474,4]
[387235354,1758664259133,-150.0,0.0002474,4]
[387235355,1758664259142,-150.0,0.0002474,4]
[387235356,1758664259151,-150.0,0.0002474,4]
[387235357,1758664259160,-150.0,0.0002474,4]
[387235358,1758664259169,-360.35,0.00024741,2]
[387235359,1758664259178,-211.0,0.00024743,2]
[387235360,1758664259187,-673.13955284,0.0002479,2]
[387235361,1758664259196,-250.0,0.00024794,2]
[387235362,1758664259206,-594.55,0.00024798,2]
[387235363,1758664259215,-500.0,0.00024798,3]
[387235364,1758664259224,-5837.31,0.00024798,2]
[387235365,1758664259233,-5837.31,0.00024798,2]
[387235366,1758664259242,-287768.75911101,0.00024799,2]
[387235367,1758664259251,-400.0,0.00024799,3]
[387235368,1758664259261,-809.64,0.00024799,3]
[387235369,1758664259270,-809.64,0.00024799,3]
[387235370,1758664259279,-500.0,0.00024799,3]
[387235371,1758664259287,-500.0,0.00024799,3]
[387235372,1758664259296,-500.0,0.00024799,3]
[387235373,1758664259306,-4833.4,0.00024799,2]
[387235374,1758664259314,-500.0,0.00024799,3]
[387235375,1758664259324,-500.0,0.00024799,3]
[387235376,1758664259333,-500.0,0.00024799,3]
[387235377,1758664259342,-151.0,0.00024799,7]
[387235378,1758664259351,-151.0,0.00024799,7]
[387235379,1758664259365,-446.059442,0.00024799,7]
[387235380,1758664259374,-151.0,0.00024799,7]
[387235381,1758664259383,-446.059442,0.00024799,7]
[387235382,1758664259392,-151.0,0.00024799,7]
[387235383,1758664259403,-446.059442,0.00024799,7]
[387235384,1758664259413,-237.871945,0.00024799,7]
[387235385,1758664259422,-446.059442,0.00024799,7]
[387235386,1758664259432,-237.871945,0.00024799,7]
[387235387,1758664259442,-237.871945,0.00024799,7]
[387235388,1758664259451,-237.871945,0.00024799,7]
[387235389,1758664259460,-2719.606076,0.00024799,7]
[387235390,1758664259470,-2719.606076,0.00024799,7]
[387235391,1758664259479,-2719.606076,0.00024799,7]
[387235392,1758664259488,-2719.606076,0.00024799,7]
[387235393,1758664259497,-151.0,0.00024799,7]
[387235394,1758664259506,-151.0,0.00024799,7]
[387235395,1758664259516,-151.0,0.00024799,7]
[387235396,1758664259526,-151.0,0.00024799,7]
[387235397,1758664259535,-151.0,0.00024799,7]
[387235398,1758664259544,-151.0,0.00024799,7]
[387235399,1758664259553,-151.0,0.00024799,7]
[387235400,1758664259562,-151.0,0.00024799,7]
[387235401,1758664259571,-151.0,0.00024799,7]
[387235402,1758664259580,-151.0,0.00024799,7]
[387235403,1758664259589,-151.0,0.00024799,7]
[387235404,1758664259599,-151.0,0.00024799,7]
[387235405,1758664259607,-151.0,0.00024799,7]
[387235406,1758664259617,-519.740166,0.00024799,7]
[387235407,1758664259627,-519.740166,0.00024799,7]
[387235408,1758664259635,-519.740166,0.00024799,7]
[387235409,1758664259644,-519.740166,0.00024799,7]
[387235410,1758664259653,-151.0,0.00024799,7]
[387235411,1758664259662,-151.0,0.00024799,7]
[387235412,1758664259671,-151.972686,0.00024799,7]
[387235413,1758664259681,-151.0,0.00024799,7]
[387235414,1758664259690,-151.0,0.00024799,7]
[387235415,1758664259699,-151.0,0.00024799,7]
[387235416,1758664259708,-151.0,0.00024799,7]
[387235417,1758664259717,-151.0,0.00024799,7]
[387235418,1758664259727,-229.07844,0.00024799,7]
[387235419,1758664259738,-408.296535,0.00024799,7]
[387235420,1758664259748,-408.296535,0.00024799,7]
[387235421,1758664259758,-391.996383,0.00024799,7]
[387235422,1758664259771,-391.996383,0.00024799,7]
[387235423,1758664259780,-391.996383,0.00024799,7]
[387235424,1758664259789,-391.996383,0.00024799,7]
[387235425,1758664259798,-151.0,0.00024799,7]
[387235426,1758664259812,-151.0,0.00024799,7]
[387235427,1758664259823,-151.0,0.00024799,7]
[387235428,1758664259832,-333.226514,0.00024799,7]
[387235429,1758664259841,-333.226514,0.00024799,7]
[387235430,1758664259851,-333.226514,0.00024799,7]
[387235431,1758664259860,-333.226514,0.00024799,7]
[387235432,1758664259870,-151.0,0.00024799,7]
[387235433,1758664259879,-2081.852997,0.00024799,7]
[387235434,1758664259888,-2081.852997,0.00024799,7]
[387235435,1758664259897,-263.23311,0.00024799,7]
[387235436,1758664259907,-151.0,0.00024799,7]
[387235437,1758664259916,-2081.852997,0.00024799,7]
[387235438,1758664259925,-263.23311,0.00024799,7]
[387235439,1758664259935,-2081.852997,0.00024799,7]
[387235440,1758664259944,-151.0,0.00024799,7]
[387235441,1758664259953,-263.23311,0.00024799,7]
[387235442,1758664259962,-263.23311,0.00024799,7]
[387235443,1758664259972,-151.0,0.00024799,7]
[387235444,1758664259981,-151.0,0.00024799,7]
[387235445,1758664259990,-151.0,0.00024799,7]
[387235446,1758664259999,-151.0,0.00024799,7]
[387235447,1758664260009,-152.039803,0.00024799,7]
[387235448,1758664260018,-152.039803,0.00024799,7]
[387235449,1758664260028,-152.039803,0.00024799,7]
[387235450,1758664260037,-152.039803,0.00024799,7]
[387235451,1758664260047,-155.491472,0.00024799,7]
[387235452,1758664260057,-715.33,0.00024799,3]
[387235453,1758664260067,-500.0,0.00024799,3]
[387235454,1758664260076,-715.33,0.00024799,3]
[387235455,1758664260086,-500.0,0.00024799,3]
[387235456,1758664260095,-715.33,0.00024799,3]
[387235457,1758664260104,-500.0,0.00024799,3]
[387235458,1758664260114,-168.141365,0.00024799,7]
[387235459,1758664260123,-151.0,0.00024799,7]
[387235460,1758664260132,-236.564627,0.00024799,7]
[387235461,1758664260142,-151.0,0.00024799,7]
[387235462,1758664260151,-168.141365,0.00024799,7]
[387235463,1758664260160,-236.564627,0.00024799,7]
[387235464,1758664260170,-168.141365,0.00024799,7]
[387235465,1758664260179,-236.564627,0.00024799,7]
[387235466,1758664260188,-168.141365,0.00024799,7]
[387235467,1758664260197,-236.564627,0.00024799,7]
[387235468,1758664260207,-151.0,0.00024799,7]
[387235469,1758664260217,-151.0,0.00024799,7]
[387235470,1758664260226,-151.0,0.00024799,7]
[387235471,1758664260235,-151.0,0.00024799,7]
[387235472,1758664260245,-269.816212,0.00024799,7]
[387235473,1758664260254,-151.0,0.00024799,7]
[387235474,1758664260264,-151.0,0.00024799,7]
[387235475,1758664260274,-269.816212,0.00024799,7]
[387235476,1758664260283,-151.0,0.00024799,7]
[387235477,1758664260293,-151.0,0.00024799,7]
[387235478,1758664260302,-150.0,0.000248,2]
[387235479,1758664260311,-1152.76275354,0.000248,2]
[387235480,1758664260320,-150.0,0.000248,2]
[387235481,1758664260330,-13819.20609499,0.000248,2]
[387235482,1758664260339,-151.0,0.000248,7]
[387235483,1758664260348,-156.125754,0.000248,7]
[387235484,1758664260361,-151.0,0.000248,7]
[387235485,1758664260370,-151.0,0.000248,7]
[387235486,1758664260379,-151.0,0.000248,7]
[387235487,1758664260389,-193.817159,0.000248,7]
[387235488,1758664260398,-151.0,0.000248,7]
[387235489,1758664260407,-172.855808,0.000248,7]
[387235490,1758664260416,-154.555073,0.000248,7]
[387235491,1758664260425,-151.0,0.000248,7]
[387235492,1758664260434,-151.0,0.000248,7]
[387235493,1758664260444,-151.0,0.000248,7]
[387235494,1758664260453,-151.0,0.000248,7]
[387235495,1758664260462,-151.0,0.000248,7]
[387235496,1758664260471,-151.0,0.000248,7]
[387235497,1758664260481,-151.0,0.000248,7]
[387235498,1758664260490,-151.0,0.000248,7]
[387235499,1758664260499,-221.395517,0.000248,7]
[387235500,1758664260508,-216.032588,0.000248,7]
[387235501,1758664260517,-216.032588,0.000248,7]
[387235502,1758664260526,-216.032588,0.000248,7]
[387235503,1758664260535,-216.032588,0.000248,7]
[387235504,1758664260544,-151.0,0.000248,7]
[387235505,1758664260553,-151.0,0.000248,7]
[387235506,1758664260562,-151.0,0.000248,7]
[387235507,1758664260571,-151.0,0.000248,7]
[387235508,1758664260581,-151.0,0.000248,7]
[387235509,1758664260590,-151.0,0.000248,7]
[387235510,1758664260599,-151.0,0.000248,7]
[387235511,1758664260608,-151.0,0.000248,7]
[387235512,1758664260618,-151.0,0.000248,7]
[387235513,1758664260627,-151.0,0.000248,7]
[387235514,1758664260636,-151.0,0.000248,7]
[387235515,1758664260646,-151.0,0.000248,7]
[387235516,1758664260655,-151.0,0.000248,7]
[387235517,1758664260664,-151.0,0.000248,7]
[387235518,1758664260673,-151.0,0.000248,7]
[387235519,1758664260682,-151.0,0.000248,7]
[387235520,1758664260691,-151.0,0.000248,7]
[387235521,1758664260700,-151.0,0.000248,7]
[387235522,1758664260709,-151.0,0.000248,7]
[387235523,1758664260719,-151.0,0.000248,7]
[387235524,1758664260728,-151.0,0.000248,7]
[387235525,1758664260737,-151.0,0.000248,7]
[387235526,1758664260747,-151.0,0.000248,7]
[387235527,1758664260756,-151.0,0.000248,7]
[387235528,1758664260765,-151.0,0.000248,7]
[387235529,1758664260774,-151.0,0.000248,7]
[387235530,1758664260784,-272.920913,0.000248,7]
[387235531,1758664260794,-151.0,0.000248,7]
[387235532,1758664260803,-272.920913,0.000248,7]
[387235533,1758664260813,-151.0,0.000248,7]
[387235534,1758664260824,-272.920913,0.000248,7]
[387235535,1758664260835,-272.920913,0.000248,7]
[387235536,1758664260845,-152.240941,0.000248,7]
[387235537,1758664260856,-151.0,0.000248,7]
[387235538,1758664260867,-151.0,0.000248,7]
[387235539,1758664260878,-151.0,0.000248,7]
[387235540,1758664260889,-151.0,0.000248,7]
[387235541,1758664260900,-151.0,0.000248,7]
[387235542,1758664260910,-151.0,0.000248,7]
[387235543,1758664260920,-151.0,0.000248,7]
[387235544,1758664260929,-151.0,0.000248,7]
[387235545,1758664261069,-151.0,0.000248,7]
[387235546,1758664261079,-151.0,0.000248,7]
[387235547,1758664261089,-151.0,0.000248,7]
[387235548,1758664261098,-151.0,0.000248,7]
[387235549,1758664261107,-151.0,0.000248,7]
[387235550,1758664261117,-178.197237,0.000248,7]
[387235551,1758664261127,-178.197237,0.000248,7]
[387235552,1758664261136,-151.0,0.000248,7]
[387235553,1758664261145,-178.197237,0.000248,7]
[387235554,1758664261155,-151.0,0.000248,7]
[387235555,1758664261163,-178.197237,0.000248,7]
[387235556,1758664261173,-152.284734,0.000248,7]
[387235557,1758664261182,-152.284734,0.000248,7]
[387235558,1758664261191,-152.284734,0.000248,7]
[387235559,1758664261202,-152.284734,0.000248,7]
[387235560,1758664261211,-151.0,0.000248,7]
[387235561,1758664261220,-300.0,0.000248,9]
[387235562,1758664261229,-612658.340672,0.000248,2]
[387235563,1758664261239,-151.0,0.000248,7]
[387235564,1758664261249,-151.0,0.000248,7]
[387235565,1758664261259,-151.0,0.000248,7]
[387235566,1758664261267,-151.0,0.000248,7]
[387235567,1758664261277,-151.0,0.000248,7]
[387235568,1758664261286,-151.0,0.000248,7]
[387235569,1758664261295,-151.0,0.000248,7]
[387235570,1758664261304,-151.0,0.000248,7]
[387235571,1758664261313,-1001.970278,0.000248,7]
[387235572,1758664261324,-1001.970278,0.000248,7]
[387235573,1758664261334,-1001.970278,0.000248,7]
[387235574,1758664261343,-1001.970278,0.000248,7]
[387235575,1758664261352,-3639.61396666,0.00024831,2]
[387235576,1758664261364,-604.36503686,0.00024831,2]
[387235577,1758664261374,-323.02865831,0.00024831,2]
[387235578,1758664261383,-183.79283244,0.00024831,4]
[387235579,1758664261392,-6265.08355112,0.00024831,2]
[387235580,1758664261403,-151.0,0.00024831,7]
[387235581,1758664261412,-236.564627,0.00024831,7]
[387235582,1758664261423,-168.141365,0.00024831,7]
[387235583,1758664261433,-168.141365,0.00024831,7]
[387235584,1758664261443,-236.564627,0.00024831,7]
[387235585,1758664261454,-203.992752,0.00024831,7]
[387235586,1758664261463,-168.141365,0.00024831,7]
[387235587,1758664261473,-236.564627,0.00024831,7]
[387235588,1758664261483,-168.141365,0.00024831,7]
[387235589,1758664261493,-236.564627,0.00024831,7]
[387235590,1758664261503,-151.0,0.00024831,7]
[387235591,1758664261513,-151.0,0.00024831,7]
[387235592,1758664261523,-297.60552,0.00024831,7]
[387235593,1758664261532,-1545.40600196,0.00024831,2]
[387235594,1758664261542,-151.0,0.00024831,7]
[387235595,1758664261551,-269.816212,0.00024831,7]
[387235596,1758664261561,-151.0,0.00024831,7]
[387235597,1758664261570,-151.0,0.00024831,7]
[387235598,1758664261579,-269.816212,0.00024831,7]
[387235599,1758664261589,-151.0,0.00024831,7]
[387235600,1758664261598,-160.49161374,0.00024831,2]
[387235601,1758664261608,-500.0,0.00024832,9]
[387235602,1758664261617,-500.0,0.00024832,9]
[387235603,1758664261627,-500.0,0.00024832,9]
[387235604,1758664261636,-500.0,0.00024832,9]
[387235605,1758664261645,-500.0,0.00024832,9]
[387235606,1758664261655,-500.0,0.00024832,9]
[387235607,1758664261664,-500.0,0.00024832,9]
[387235608,1758664261674,-500.0,0.00024832,9]
[387235609,1758664261684,-168.0,0.0002485,2]
[387235610,1758664261694,-715.33,0.00024898,3]
[387235611,1758664261703,-500.0,0.00024899,2]
[387235612,1758664261713,-500.0,0.00024899,2]
[387235613,1758664261722,-500.0,0.00024899,2]
[387235614,1758664261732,-809.64,0.00024899,3]
[387235615,1758664261742,-500.0,0.00024899,3]
[387235616,1758664261751,-500.0,0.00024899,3]
[387235617,1758664261761,-261.8,0.00024899,3]
[387235618,1758664261770,-500.0,0.00024899,3]
[387235619,1758664261779,-446.79,0.00024899,3]
[387235620,1758664261789,-500.0,0.00024899,3]
[387235621,1758664261798,-500.0,0.00024899,3]
[387235622,1758664261808,-5837.31,0.00024899,2]
[387235623,1758664261817,-5837.31,0.00024899,2]
[387235624,1758664261826,-5837.31,0.00024899,2]
[387235625,1758664261835,-151.0,0.000249,7]
[387235626,1758664261845,-151.0,0.000249,7]
[387235627,1758664261855,-153.379086,0.000249,7]
[387235628,1758664261865,-151.0,0.000249,7]
[387235629,1758664261875,-195.296498,0.000249,7]
[387235630,1758664261884,-151.0,0.000249,7]
[387235631,1758664261894,-446.059442,0.000249,7]
[387235632,1758664261904,-151.0,0.000249,7]
[387235633,1758664261914,-446.059442,0.000249,7]
[387235634,1758664261924,-285.363691,0.000249,7]
[387235635,1758664261933,-446.059442,0.000249,7]
[387235636,1758664261943,-237.871945,0.000249,7]
[387235637,1758664261952,-446.059442,0.000249,7]
[387235638,1758664261962,-237.871945,0.000249,7]
[387235639,1758664261973,-237.871945,0.000249,7]
[387235640,1758664261983,-237.871945,0.000249,7]
[387235641,1758664261992,-2719.606076,0.000249,7]
[387235642,1758664262002,-2719.606076,0.000249,7]
[387235643,1758664262011,-2719.606076,0.000249,7]
[387235644,1758664262021,-2719.606076,0.000249,7]
[387235645,1758664262030,-151.0,0.000249,7]
[387235646,1758664262039,-153.265969,0.000249,7]
[387235647,1758664262049,-151.0,0.000249,7]
[387235648,1758664262058,-151.0,0.000249,7]
[387235649,1758664262067,-151.0,0.000249,7]
[387235650,1758664262077,-168.587275,0.000249,7]
[387235651,1758664262086,-151.0,0.000249,7]
[387235652,1758664262096,-151.0,0.000249,7]
[387235653,1758664262105,-151.0,0.000249,7]
[387235654,1758664262115,-151.0,0.000249,7]
[387235655,1758664262125,-519.740166,0.000249,7]
[387235656,1758664262135,-519.740166,0.000249,7]
[387235657,1758664262145,-519.740166,0.000249,7]
[387235658,1758664262155,-519.740166,0.000249,7]
[387235659,1758664262164,-151.0,0.000249,7]
[387235660,1758664262174,-151.0,0.000249,7]
[387235661,1758664262183,-151.0,0.000249,7]
[387235662,1758664262192,-151.0,0.000249,7]
[387235663,1758664262202,-151.0,0.000249,7]
[387235664,1758664262211,-151.0,0.000249,7]
[387235665,1758664262221,-408.296535,0.000249,7]
[387235666,1758664262230,-408.296535,0.000249,7]
[387235667,1758664262239,-408.296535,0.000249,7]
[387235668,1758664262249,-391.996383,0.000249,7]
[387235669,1758664262259,-391.996383,0.000249,7]
[387235670,1758664262268,-391.996383,0.000249,7]
[387235671,1758664262278,-391.996383,0.000249,7]
[387235672,1758664262288,-183.002625,0.000249,7]
[387235673,1758664262297,-300.0,0.000249,9]
[387235674,1758664262307,-14253.46763917,0.000249,2]
[387235675,1758664262316,-215721.914782,0.000249,2]
[387235676,1758664262326,-151.0,0.000249,7]
[387235677,1758664262335,-151.0,0.000249,7]
[387235678,1758664262345,-333.226514,0.000249,7]
[387235679,1758664262354,-333.226514,0.000249,7]
[387235680,1758664262366,-333.226514,0.000249,7]
[387235681,1758664262375,-333.226514,0.000249,7]
[387235682,1758664262384,-193.616989,0.000249,7]
[387235683,1758664262394,-2081.852997,0.000249,7]
[387235684,1758664262403,-2081.852997,0.000249,7]
[387235685,1758664262413,-263.23311,0.000249,7]
[387235686,1758664262422,-243.516355,0.000249,7]
[387235687,1758664262431,-2081.852997,0.000249,7]
[387235688,1758664262441,-263.23311,0.000249,7]
[387235689,1758664262451,-2081.852997,0.000249,7]
[387235690,1758664262460,-263.23311,0.000249,7]
[387235691,1758664262470,-263.23311,0.000249,7]
[387235692,1758664262479,-151.0,0.000249,7]
[387235693,1758664262488,-151.0,0.000249,7]
[387235694,1758664262498,-152.039803,0.000249,7]
[387235695,1758664262507,-152.039803,0.000249,7]
[387235696,1758664262516,-152.039803,0.000249,7]
[387235697,1758664262525,-152.039803,0.000249,7]
[387235698,1758664262535,-183.28,0.00024904,2]
[387235699,1758664262544,-809.64,0.0002492,3]
[387235700,1758664262554,-500.0,0.0002493,2]
[387235701,1758664262564,-500.0,0.0002493,2]
[387235702,1758664262573,-500.0,0.0002493,2]
[387235703,1758664262582,-500.0,0.0002493,2]
[387235704,1758664262592,-333.85,0.0002493,2]
[387235705,1758664262601,-809.64,0.0002493,3]
[387235706,1758664262611,-809.64,0.0002493,3]
[387235707,1758664262620,-809.64,0.0002493,3]
[387235708,1758664262629,-809.64,0.0002493,3]